[Event "Titled Tuesday Blitz August 16 Early 2022"]
[White "Wagner, Dennis"]
[Black "Suder, Jakub"]
[WhiteFideId "24650684"]
[BlackFideId "1195310"]
[WhiteElo "2355"]
[BlackElo "2095"]
[Result "1-0"]
[Round "07"]
[TimeControl "180+1"]
[Date "2022.08.16"]
[WhiteClock "0:00:09"]
[BlackClock "0:00:10"]

1. Nf3 {[%clk 0:03:00]}  e6 {[%clk 0:02:59]} 2. g3 {[%clk 0:02:59]}  d5 {[%clk 0:02:59]} 3. Bg2 {[%clk 0:03:00]}  Nf6 {[%clk 0:03:00]} 4. O-O {[%clk 0:03:00]}  Be7 {[%clk 0:03:00]} 5. d3 {[%clk 0:02:55]}  c5 {[%clk 0:03:00]} 6. Bf4 {[%clk 0:02:54]}  Nc6 {[%clk 0:03:00]} 7. e4 {[%clk 0:02:51]}  h6 {[%clk 0:02:52]} 8. Qe2 {[%clk 0:02:37]}  b6 {[%clk 0:02:51]} 9. e5 {[%clk 0:02:21]}  Nd7 {[%clk 0:02:51]} 10. c4 {[%clk 0:02:21]}  d4 {[%clk 0:02:44]} 11. h4 {[%clk 0:02:11]}  Bb7 {[%clk 0:02:37]} 12. h5 {[%clk 0:01:53]}  Qc7 {[%clk 0:02:37]} 13. Nbd2 {[%clk 0:01:51]}  g5 {[%clk 0:02:37]} 14. hxg6 {[%clk 0:01:51]}  fxg6 {[%clk 0:02:37]} 15. Ne4 {[%clk 0:01:50]}  g5 {[%clk 0:02:37]} 16. Nd6+ {[%clk 0:01:49]}  Bxd6 {[%clk 0:02:38]} 17. exd6 {[%clk 0:01:50]}  Qd8 {[%clk 0:02:37]} 18. Qxe6+ {[%clk 0:01:49]}  Kf8 {[%clk 0:02:35]} 19. Be5 {[%clk 0:01:27]}  Rh7 {[%clk 0:02:24]} 20. Rae1 {[%clk 0:01:15]}  Qe8 {[%clk 0:02:17]} 21. Qf5+ {[%clk 0:01:06]}  Qf7 {[%clk 0:02:17]} 22. Bh3 {[%clk 0:00:39]}  Qxf5 {[%clk 0:02:01]} 23. Bxf5 {[%clk 0:00:40]}  Rf7 {[%clk 0:02:02]} 24. g4 {[%clk 0:00:33]}  Rd8 {[%clk 0:01:52]} 25. Bg3 {[%clk 0:00:33]}  Nf6 {[%clk 0:01:28]} 26. Ne5 {[%clk 0:00:20]}  Nxe5 {[%clk 0:01:27]} 27. Bxe5 {[%clk 0:00:20]}  Nd7 {[%clk 0:01:21]} 28. Bg3 {[%clk 0:00:20]}  Nf6 {[%clk 0:01:08]} 29. f3 {[%clk 0:00:19]}  Bc8 {[%clk 0:01:03]} 30. Bxc8 {[%clk 0:00:18]}  Rxc8 {[%clk 0:01:04]} 31. Re6 {[%clk 0:00:18]}  Rd8 {[%clk 0:00:47]} 32. Kg2 {[%clk 0:00:18]}  Ng8 {[%clk 0:00:41]} 33. Rh1 {[%clk 0:00:17]}  Re8 {[%clk 0:00:34]} 34. Rhe1 {[%clk 0:00:16]}  Rd8 {[%clk 0:00:30]} 35. a3 {[%clk 0:00:16]}  a5 {[%clk 0:00:29]} 36. b4 {[%clk 0:00:16]}  axb4 {[%clk 0:00:29]} 37. axb4 {[%clk 0:00:17]}  Rf6 {[%clk 0:00:26]} 38. bxc5 {[%clk 0:00:16]}  bxc5 {[%clk 0:00:26]} 39. R1e5 {[%clk 0:00:16]}  Kf7 {[%clk 0:00:26]} 40. Rxf6+ {[%clk 0:00:16]}  Nxf6 {[%clk 0:00:26]} 41. Rxc5 {[%clk 0:00:17]}  Ke6 {[%clk 0:00:20]} 42. Rc7 {[%clk 0:00:11]}  Nd7 {[%clk 0:00:19]} 43. c5 {[%clk 0:00:11]}  Ra8 {[%clk 0:00:15]} 44. c6 {[%clk 0:00:11]}  Nc5 {[%clk 0:00:15]} 45. Re7+ {[%clk 0:00:10]}  Kf6 {[%clk 0:00:15]} 46. c7 {[%clk 0:00:10]}  Nxd3 {[%clk 0:00:14]} 47. d7 {[%clk 0:00:09]}  Ra2+ {[%clk 0:00:14]} 48. Kh3 {[%clk 0:00:10]}  h5 {[%clk 0:00:12]} 49. gxh5 {[%clk 0:00:10]}  g4+ {[%clk 0:00:10]} 50. fxg4 {[%clk 0:00:09]}  Kg5 {[%clk 0:00:10]} 51. Rg7+ {[%clk 0:00:09]} 1-0


[Site "https://www.chess.com"]

[Event "Titled Tuesday Blitz August 16 Early 2022"]
[White "Yaksin, Oleg"]
[Black "Gubanov, Oleg"]
[WhiteFideId "24105880"]
[BlackFideId "14115115"]
[WhiteElo "2256"]
[BlackElo "2080"]
[Result "0-1"]
[Round "07"]
[TimeControl "180+2"]
[Date "2022.08.18"]
[WhiteClock "0:00:00"]
[BlackClock "0:00:00"]

1. d4 {[%clk 0:00:00]}  b5 {[%clk 0:00:00]} 2. e4 {[%clk 0:00:00]}  Bb7 {[%clk 0:00:00]} 3. Nd2 {[%clk 0:00:00]}  Nf6 {[%clk 0:00:00]} 4. Bd3 {[%clk 0:00:00]}  c5 {[%clk 0:00:00]} 5. c3 {[%clk 0:00:00]}  cxd4 {[%clk 0:00:00]} 6. cxd4 {[%clk 0:00:00]}  Nc6 {[%clk 0:00:00]} 7. Ngf3 {[%clk 0:00:00]}  Nb4 {[%clk 0:00:00]} 8. Bb1 {[%clk 0:00:00]}  Rc8 {[%clk 0:00:00]} 9. a3 {[%clk 0:00:00]}  Qc7 {[%clk 0:00:00]} 10. axb4 {[%clk 0:00:00]}  Qxc1 {[%clk 0:00:00]} 11. O-O {[%clk 0:00:00]}  Qxd1 {[%clk 0:00:00]} 12. Rxd1 {[%clk 0:00:00]}  a6 {[%clk 0:00:00]} 13. Ne1 {[%clk 0:00:00]}  e6 {[%clk 0:00:00]} 14. Nd3 {[%clk 0:00:00]}  Nxe4 {[%clk 0:00:00]} 15. Nc5 {[%clk 0:00:00]}  Nxc5 {[%clk 0:00:00]} 16. dxc5 {[%clk 0:00:00]}  d6 {[%clk 0:00:00]} 17. Be4 {[%clk 0:00:00]}  d5 {[%clk 0:00:00]} 18. Bd3 {[%clk 0:00:00]}  Be7 {[%clk 0:00:00]} 19. Ra2 {[%clk 0:00:00]}  Bd8 {[%clk 0:00:00]} 20. Nb3 {[%clk 0:00:00]}  Ke7 {[%clk 0:00:00]} 21. f4 {[%clk 0:00:00]}  g6 {[%clk 0:00:00]} 22. Kf2 {[%clk 0:00:00]}  Kd7 {[%clk 0:00:00]} 23. Re1 {[%clk 0:00:00]}  h5 {[%clk 0:00:00]} 24. Nd4 {[%clk 0:00:00]}  h4 {[%clk 0:00:00]} 25. h3 {[%clk 0:00:00]}  Bf6 {[%clk 0:00:00]} 26. Nf3 {[%clk 0:00:00]}  Rh5 {[%clk 0:00:00]} 27. Re2 {[%clk 0:00:00]}  Bg7 {[%clk 0:00:00]} 28. Rc2 {[%clk 0:00:00]}  Rc6 {[%clk 0:00:00]} 29. Ra1 {[%clk 0:00:00]}  Rh8 {[%clk 0:00:00]} 30. Rd1 {[%clk 0:00:00]}  Rcc8 {[%clk 0:00:00]} 31. Ng5 {[%clk 0:00:00]}  Ke7 {[%clk 0:00:00]} 32. Nf3 {[%clk 0:00:00]}  Bc6 {[%clk 0:00:00]} 33. Re1 {[%clk 0:00:00]}  Ra8 {[%clk 0:00:00]} 34. Ra1 {[%clk 0:00:00]}  Rhc8 {[%clk 0:00:00]} 35. Ra5 {[%clk 0:00:00]}  Bf6 {[%clk 0:00:00]} 36. Re2 {[%clk 0:00:00]}  Kd7 {[%clk 0:00:00]} 37. Ne5+ {[%clk 0:00:00]}  Bxe5 {[%clk 0:00:00]} 38. Rxe5 {[%clk 0:00:00]}  Kc7 {[%clk 0:00:00]} 39. Re1 {[%clk 0:00:00]}  Kb7 {[%clk 0:00:00]} 40. Ke3 {[%clk 0:00:00]}  Rg8 {[%clk 0:00:00]} 41. Kd4 {[%clk 0:00:00]}  Kc7 {[%clk 0:00:00]} 42. Raa1 {[%clk 0:00:00]}  Kd7 {[%clk 0:00:00]} 43. Re5 {[%clk 0:00:00]}  f6 {[%clk 0:00:00]} 44. Ree1 {[%clk 0:00:00]}  g5 {[%clk 0:00:00]} 45. fxg5 {[%clk 0:00:00]}  Rxg5 {[%clk 0:00:00]} 46. Re2 {[%clk 0:00:00]}  e5+ {[%clk 0:00:00]} 47. Kc3 {[%clk 0:00:00]}  e4 {[%clk 0:00:00]} 48. Bc2 {[%clk 0:00:00]}  Rg3+ {[%clk 0:00:00]} 49. Kd4 {[%clk 0:00:00]}  Rag8 {[%clk 0:00:00]} 50. Rg1 {[%clk 0:00:00]}  f5 {[%clk 0:00:00]} 51. Rf2 {[%clk 0:00:00]}  Ke6 {[%clk 0:00:00]} 52. Bb1 {[%clk 0:00:00]}  Rxh3 {[%clk 0:00:00]} 53. gxh3 {[%clk 0:00:00]}  Rxg1 {[%clk 0:00:00]} 54. Ke3 {[%clk 0:00:00]}  Rg3+ {[%clk 0:00:00]} 55. Kf4 {[%clk 0:00:00]}  Rxh3 {[%clk 0:00:00]} 56. Rg2 {[%clk 0:00:00]}  Rf3+ {[%clk 0:00:00]} 57. Kg5 {[%clk 0:00:00]}  Rg3+ {[%clk 0:00:00]} 58. Rxg3 {[%clk 0:00:00]}  hxg3 {[%clk 0:00:00]} 59. Bd3 {[%clk 0:00:00]}  exd3 {[%clk 0:00:00]} 0-1


[Site "https://www.chess.com"]

[Event "Titled Tuesday Blitz August 16 Early 2022"]
[White "Yurasova, Daria"]
[Black "Khusenkhojaev, Muhammad"]
[WhiteFideId "34146919"]
[BlackFideId "14700247"]
[WhiteElo "2021"]
[BlackElo "2180"]
[Result "0-1"]
[Round "07"]
[TimeControl "180+2"]
[Date "2022.08.18"]
[WhiteClock "0:00:00"]
[BlackClock "0:00:00"]

1. d4 {[%clk 0:00:00]}  Nf6 {[%clk 0:00:00]} 2. Bg5 {[%clk 0:00:00]}  Ne4 {[%clk 0:00:00]} 3. Bf4 {[%clk 0:00:00]}  d5 {[%clk 0:00:00]} 4. e3 {[%clk 0:00:00]}  c5 {[%clk 0:00:00]} 5. c3 {[%clk 0:00:00]}  Nc6 {[%clk 0:00:00]} 6. Bd3 {[%clk 0:00:00]}  Bf5 {[%clk 0:00:00]} 7. Nf3 {[%clk 0:00:00]}  Bg6 {[%clk 0:00:00]} 8. O-O {[%clk 0:00:00]}  e6 {[%clk 0:00:00]} 9. Ne5 {[%clk 0:00:00]}  Nxe5 {[%clk 0:00:00]} 10. Bxe5 {[%clk 0:00:00]}  f6 {[%clk 0:00:00]} 11. Bf4 {[%clk 0:00:00]}  Bd6 {[%clk 0:00:00]} 12. Bxd6 {[%clk 0:00:00]}  Qxd6 {[%clk 0:00:00]} 13. Bxe4 {[%clk 0:00:00]}  Bxe4 {[%clk 0:00:00]} 14. Nd2 {[%clk 0:00:00]}  Bg6 {[%clk 0:00:00]} 15. dxc5 {[%clk 0:00:00]}  Qxc5 {[%clk 0:00:00]} 16. e4 {[%clk 0:00:00]}  dxe4 {[%clk 0:00:00]} 17. Qb3 {[%clk 0:00:00]}  Qd5 {[%clk 0:00:00]} 18. Qa4+ {[%clk 0:00:00]}  b5 {[%clk 0:00:00]} 19. Qd1 {[%clk 0:00:00]}  O-O {[%clk 0:00:00]} 20. Nb3 {[%clk 0:00:00]}  Rfd8 {[%clk 0:00:00]} 21. Qe2 {[%clk 0:00:00]}  Qd3 {[%clk 0:00:00]} 22. Rfe1 {[%clk 0:00:00]}  Qxe2 {[%clk 0:00:00]} 23. Rxe2 {[%clk 0:00:00]}  a6 {[%clk 0:00:00]} 24. Nd2 {[%clk 0:00:00]}  Bh5 {[%clk 0:00:00]} 25. f3 {[%clk 0:00:00]}  exf3 {[%clk 0:00:00]} 26. Nxf3 {[%clk 0:00:00]}  e5 {[%clk 0:00:00]} 27. Kf2 {[%clk 0:00:00]}  Rd3 {[%clk 0:00:00]} 28. a4 {[%clk 0:00:00]}  b4 {[%clk 0:00:00]} 29. cxb4 {[%clk 0:00:00]}  Rb3 {[%clk 0:00:00]} 30. b5 {[%clk 0:00:00]}  axb5 {[%clk 0:00:00]} 31. a5 {[%clk 0:00:00]}  Rb4 {[%clk 0:00:00]} 32. Rd2 {[%clk 0:00:00]}  Ra4 {[%clk 0:00:00]} 33. Rxa4 {[%clk 0:00:00]}  bxa4 {[%clk 0:00:00]} 34. Rd5 {[%clk 0:00:00]}  Kf7 {[%clk 0:00:00]} 35. Nd2 {[%clk 0:00:00]}  Ke6 {[%clk 0:00:00]} 36. Rb5 {[%clk 0:00:00]}  Be8 {[%clk 0:00:00]} 37. Rc5 {[%clk 0:00:00]}  f5 {[%clk 0:00:00]} 38. Nc4 {[%clk 0:00:00]}  e4 {[%clk 0:00:00]} 39. Nb6 {[%clk 0:00:00]}  Ra7 {[%clk 0:00:00]} 40. Nc8 {[%clk 0:00:00]}  Ra6 {[%clk 0:00:00]} 41. Nb6 {[%clk 0:00:00]}  g6 {[%clk 0:00:00]} 42. Ke3 {[%clk 0:00:00]}  Kd6 {[%clk 0:00:00]} 43. Kd4 {[%clk 0:00:00]}  Bc6 {[%clk 0:00:00]} 44. Kc4 {[%clk 0:00:00]}  e3 {[%clk 0:00:00]} 45. Kb4 {[%clk 0:00:00]}  e2 {[%clk 0:00:00]} 46. Rc1 {[%clk 0:00:00]}  Bxg2 {[%clk 0:00:00]} 47. Kb5 {[%clk 0:00:00]}  Rxb6+ {[%clk 0:00:00]} 48. Kxb6 {[%clk 0:00:00]}  f4 {[%clk 0:00:00]} 49. a6 {[%clk 0:00:00]}  f3 {[%clk 0:00:00]} 50. Rc6+ {[%clk 0:00:00]}  Ke5 {[%clk 0:00:00]} 51. a7 {[%clk 0:00:00]}  f2 {[%clk 0:00:00]} 52. a8=Q {[%clk 0:00:00]}  Bxc6 {[%clk 0:00:00]} 53. Qb8+ {[%clk 0:00:00]}  Ke4 {[%clk 0:00:00]} 54. Kxc6 {[%clk 0:00:00]}  e1=Q {[%clk 0:00:00]} 55. Qe8+ {[%clk 0:00:00]}  Kf3 {[%clk 0:00:00]} 56. Qf7+ {[%clk 0:00:00]}  Kg2 {[%clk 0:00:00]} 57. Qd5+ {[%clk 0:00:00]}  Kxh2 {[%clk 0:00:00]} 58. Qd6+ {[%clk 0:00:00]}  Kh3 {[%clk 0:00:00]} 59. Qd7+ {[%clk 0:00:00]}  Kg3 {[%clk 0:00:00]} 60. Qd6+ {[%clk 0:00:00]}  Kg4 {[%clk 0:00:00]} 61. Qd4+ {[%clk 0:00:00]}  Kf5 {[%clk 0:00:00]} 62. Qc5+ {[%clk 0:00:00]}  Kf4 {[%clk 0:00:00]} 63. Qd6+ {[%clk 0:00:00]}  Qe5 {[%clk 0:00:00]} 64. Qd2+ {[%clk 0:00:00]}  Kf3 {[%clk 0:00:00]} 65. Qd3+ {[%clk 0:00:00]}  Kg2 {[%clk 0:00:00]} 66. Qd2 {[%clk 0:00:00]}  g5 {[%clk 0:00:00]} 0-1


[Site "https://www.chess.com"]

[Event "Titled Tuesday Blitz August 16 Early 2022"]
[White "Ziatdinov, Raset"]
[Black "Goltseva, Ekaterina"]
[WhiteFideId "2015323"]
[BlackFideId "24173770"]
[WhiteElo "2220"]
[BlackElo "2086"]
[Result "1/2-1/2"]
[Round "07"]
[TimeControl "180+2"]
[Date "2022.08.18"]
[WhiteClock "0:00:00"]
[BlackClock "0:00:00"]

1. e4 {[%clk 0:00:00]}  e5 {[%clk 0:00:00]} 2. Nf3 {[%clk 0:00:00]}  Nc6 {[%clk 0:00:00]} 3. Bb5 {[%clk 0:00:00]}  a6 {[%clk 0:00:00]} 4. Ba4 {[%clk 0:00:00]}  Nf6 {[%clk 0:00:00]} 5. O-O {[%clk 0:00:00]}  Be7 {[%clk 0:00:00]} 6. Re1 {[%clk 0:00:00]}  b5 {[%clk 0:00:00]} 7. Bb3 {[%clk 0:00:00]}  d6 {[%clk 0:00:00]} 8. c3 {[%clk 0:00:00]}  O-O {[%clk 0:00:00]} 9. d4 {[%clk 0:00:00]}  Bg4 {[%clk 0:00:00]} 10. Be3 {[%clk 0:00:00]}  Na5 {[%clk 0:00:00]} 11. Bc2 {[%clk 0:00:00]}  Nc4 {[%clk 0:00:00]} 12. Nbd2 {[%clk 0:00:00]}  Nxd2 {[%clk 0:00:00]} 13. Bxd2 {[%clk 0:00:00]}  c5 {[%clk 0:00:00]} 14. dxe5 {[%clk 0:00:00]}  dxe5 {[%clk 0:00:00]} 15. h3 {[%clk 0:00:00]}  Bxf3 {[%clk 0:00:00]} 16. Qxf3 {[%clk 0:00:00]}  Qxd2 {[%clk 0:00:00]} 17. Rac1 {[%clk 0:00:00]}  Qd7 {[%clk 0:00:00]} 18. b3 {[%clk 0:00:00]}  Rfd8 {[%clk 0:00:00]} 19. Red1 {[%clk 0:00:00]}  Qb7 {[%clk 0:00:00]} 20. Qe2 {[%clk 0:00:00]}  Rxd1+ {[%clk 0:00:00]} 21. Rxd1 {[%clk 0:00:00]}  Rd8 {[%clk 0:00:00]} 22. Re1 {[%clk 0:00:00]}  b4 {[%clk 0:00:00]} 23. cxb4 {[%clk 0:00:00]}  cxb4 {[%clk 0:00:00]} 24. Bd3 {[%clk 0:00:00]}  a5 {[%clk 0:00:00]} 25. f3 {[%clk 0:00:00]}  Bc5+ {[%clk 0:00:00]} 26. Kh2 {[%clk 0:00:00]}  Nh5 {[%clk 0:00:00]} 27. Bc4 {[%clk 0:00:00]}  Qe7 {[%clk 0:00:00]} 28. Rd1 {[%clk 0:00:00]}  Bd4 {[%clk 0:00:00]} 29. g3 {[%clk 0:00:00]}  Qg5 {[%clk 0:00:00]} 30. Qg2 {[%clk 0:00:00]}  h6 {[%clk 0:00:00]} 31. h4 {[%clk 0:00:00]}  Qe7 {[%clk 0:00:00]} 32. Qe2 {[%clk 0:00:00]}  Bb6 {[%clk 0:00:00]} 33. Rxd8+ {[%clk 0:00:00]}  Qxd8 {[%clk 0:00:00]} 34. f4 {[%clk 0:00:00]}  Nf6 {[%clk 0:00:00]} 35. fxe5 {[%clk 0:00:00]}  Ne8 {[%clk 0:00:00]} 36. e6 {[%clk 0:00:00]}  fxe6 {[%clk 0:00:00]} 37. Bxe6+ {[%clk 0:00:00]}  Kh8 {[%clk 0:00:00]} 38. Qf1 {[%clk 0:00:00]}  Qe7 {[%clk 0:00:00]} 39. Qf5 {[%clk 0:00:00]}  Nc7 {[%clk 0:00:00]} 40. Bc4 {[%clk 0:00:00]}  Bd4 {[%clk 0:00:00]} 41. Qc8+ {[%clk 0:00:00]}  Ne8 {[%clk 0:00:00]} 42. Bb5 {[%clk 0:00:00]}  Be5 {[%clk 0:00:00]} 43. Qxe8+ {[%clk 0:00:00]}  Qxe8 {[%clk 0:00:00]} 44. Bxe8 {[%clk 0:00:00]}  Kg8 {[%clk 0:00:00]} 45. Bb5 {[%clk 0:00:00]}  Kf8 {[%clk 0:00:00]} 46. Kg2 {[%clk 0:00:00]}  Ke7 {[%clk 0:00:00]} 47. Bc4 {[%clk 0:00:00]}  Kd6 {[%clk 0:00:00]} 48. Bd5 {[%clk 0:00:00]}  Kc5 {[%clk 0:00:00]} 49. Kf3 {[%clk 0:00:00]}  Kd4 {[%clk 0:00:00]} 50. g4 {[%clk 0:00:00]}  Kc5 {[%clk 0:00:00]} 51. g5 {[%clk 0:00:00]}  hxg5 {[%clk 0:00:00]} 52. hxg5 {[%clk 0:00:00]}  Kd6 {[%clk 0:00:00]} 53. g6 {[%clk 0:00:00]}  Bd4 {[%clk 0:00:00]} 54. Kg4 {[%clk 0:00:00]}  Be5 {[%clk 0:00:00]} 55. Kf5 {[%clk 0:00:00]}  Bd4 {[%clk 0:00:00]} 56. Bf7 {[%clk 0:00:00]}  Be5 {[%clk 0:00:00]} 57. Bg8 {[%clk 0:00:00]}  Bd4 {[%clk 0:00:00]} 58. Kg4 {[%clk 0:00:00]}  Be5 {[%clk 0:00:00]} 59. Kf3 {[%clk 0:00:00]}  Bd4 {[%clk 0:00:00]} 60. Ke2 {[%clk 0:00:00]}  Be5 {[%clk 0:00:00]} 61. Kd3 {[%clk 0:00:00]}  Kc5 {[%clk 0:00:00]} 62. Bc4 {[%clk 0:00:00]}  Bc3 {[%clk 0:00:00]} 63. Bf7 {[%clk 0:00:00]}  Be5 {[%clk 0:00:00]} 64. Kc2 {[%clk 0:00:00]}  Bc3 {[%clk 0:00:00]} 65. Kd3 {[%clk 0:00:00]}  Be5 {[%clk 0:00:00]} 66. Be6 {[%clk 0:00:00]}  Bc3 {[%clk 0:00:00]} 67. Bf5 {[%clk 0:00:00]}  Be5 {[%clk 0:00:00]} 68. Ke3 {[%clk 0:00:00]}  Bc3 {[%clk 0:00:00]} 69. Be6 {[%clk 0:00:00]}  Be5 {[%clk 0:00:00]} 70. Kf3 {[%clk 0:00:00]}  Kd6 {[%clk 0:00:00]} 71. Ke3 {[%clk 0:00:00]}  Kc5 {[%clk 0:00:00]} 72. Bc4 {[%clk 0:00:00]}  Kd6 {[%clk 0:00:00]} 73. Kf3 {[%clk 0:00:00]}  Kc5 {[%clk 0:00:00]} 74. Kg4 {[%clk 0:00:00]}  Kd6 {[%clk 0:00:00]} 75. Kf5 {[%clk 0:00:00]}  Bd4 {[%clk 0:00:00]} 76. Bd5 {[%clk 0:00:00]}  Be5 {[%clk 0:00:00]} 77. Bg8 {[%clk 0:00:00]}  Bd4 {[%clk 0:00:00]} 78. Bh7 {[%clk 0:00:00]}  Be5 {[%clk 0:00:00]} 79. Bg8 {[%clk 0:00:00]} 1/2-1/2


[Site "https://www.chess.com"]

[Event "Titled Tuesday Blitz August 16 Early 2022"]
[White "Adewumi, Tanitoluwa"]
[Black "Melikhov, Evgeny V."]
[WhiteFideId "30966396"]
[BlackFideId "4122046"]
[WhiteElo "2302"]
[BlackElo "1963"]
[Result "1-0"]
[Round "08"]
[TimeControl "180+2"]
[Date "2022.08.18"]
[WhiteClock "0:00:00"]
[BlackClock "0:00:00"]

1. e4 {[%clk 0:00:00]}  e5 {[%clk 0:00:00]} 2. Nf3 {[%clk 0:00:00]}  Nc6 {[%clk 0:00:00]} 3. Bc4 {[%clk 0:00:00]}  Nf6 {[%clk 0:00:00]} 4. d3 {[%clk 0:00:00]}  Be7 {[%clk 0:00:00]} 5. O-O {[%clk 0:00:00]}  O-O {[%clk 0:00:00]} 6. Re1 {[%clk 0:00:00]}  d6 {[%clk 0:00:00]} 7. c3 {[%clk 0:00:00]}  Na5 {[%clk 0:00:00]} 8. Bb5 {[%clk 0:00:00]}  a6 {[%clk 0:00:00]} 9. Ba4 {[%clk 0:00:00]}  b5 {[%clk 0:00:00]} 10. Bc2 {[%clk 0:00:00]}  c5 {[%clk 0:00:00]} 11. h3 {[%clk 0:00:00]}  Bb7 {[%clk 0:00:00]} 12. Nbd2 {[%clk 0:00:00]}  Re8 {[%clk 0:00:00]} 13. Nf1 {[%clk 0:00:00]}  Bf8 {[%clk 0:00:00]} 14. Bg5 {[%clk 0:00:00]}  h6 {[%clk 0:00:00]} 15. Bxf6 {[%clk 0:00:00]}  Qxf6 {[%clk 0:00:00]} 16. Ne3 {[%clk 0:00:00]}  Nc6 {[%clk 0:00:00]} 17. a4 {[%clk 0:00:00]}  Ne7 {[%clk 0:00:00]} 18. Bb3 {[%clk 0:00:00]}  Rec8 {[%clk 0:00:00]} 19. axb5 {[%clk 0:00:00]}  axb5 {[%clk 0:00:00]} 20. Rxa8 {[%clk 0:00:00]}  Bxa8 {[%clk 0:00:00]} 21. Ng4 {[%clk 0:00:00]}  Qg6 {[%clk 0:00:00]} 22. Nh4 {[%clk 0:00:00]}  Qg5 {[%clk 0:00:00]} 23. Nf3 {[%clk 0:00:00]}  Qg6 {[%clk 0:00:00]} 24. d4 {[%clk 0:00:00]}  exd4 {[%clk 0:00:00]} 25. cxd4 {[%clk 0:00:00]}  c4 {[%clk 0:00:00]} 26. Bc2 {[%clk 0:00:00]}  Qe6 {[%clk 0:00:00]} 27. Qd2 {[%clk 0:00:00]}  Ng6 {[%clk 0:00:00]} 28. d5 {[%clk 0:00:00]}  Qd7 {[%clk 0:00:00]} 29. Nd4 {[%clk 0:00:00]}  Ne5 {[%clk 0:00:00]} 30. Ne3 {[%clk 0:00:00]}  g6 {[%clk 0:00:00]} 31. f4 {[%clk 0:00:00]}  c3 {[%clk 0:00:00]} 32. bxc3 {[%clk 0:00:00]}  Nc4 {[%clk 0:00:00]} 33. Nxc4 {[%clk 0:00:00]}  Rxc4 {[%clk 0:00:00]} 34. Bd3 {[%clk 0:00:00]}  Rc5 {[%clk 0:00:00]} 35. Ra1 {[%clk 0:00:00]}  Qc8 {[%clk 0:00:00]} 36. Qa2 {[%clk 0:00:00]}  Bb7 {[%clk 0:00:00]} 37. Bxb5 {[%clk 0:00:00]}  Rxc3 {[%clk 0:00:00]} 38. Bc6 {[%clk 0:00:00]}  Bxc6 {[%clk 0:00:00]} 39. Nxc6 {[%clk 0:00:00]}  Qb7 {[%clk 0:00:00]} 40. Rb1 {[%clk 0:00:00]}  Qc7 {[%clk 0:00:00]} 41. Qa8 {[%clk 0:00:00]}  Kg7 {[%clk 0:00:00]} 42. Rb7 {[%clk 0:00:00]}  Rxc6 {[%clk 0:00:00]} 43. dxc6 {[%clk 0:00:00]}  Qxc6 {[%clk 0:00:00]} 44. Rxf7+ {[%clk 0:00:00]}  Kxf7 {[%clk 0:00:00]} 45. Qxc6 {[%clk 0:00:00]} 1-0


[Site "https://www.chess.com"]

[Event "Titled Tuesday Blitz August 16 Early 2022"]
[White "Ajay, Karthikeyan"]
[Black "Samadov, Read"]
[WhiteFideId "35011685"]
[BlackFideId "13417444"]
[WhiteElo "2168"]
[BlackElo "2084"]
[Result "0-1"]
[Round "08"]
[TimeControl "180+1"]
[Date "2022.08.16"]
[WhiteClock "0:00:08"]
[BlackClock "0:01:38"]

1. d4 {[%clk 0:02:57]}  Nf6 {[%clk 0:02:59]} 2. Bf4 {[%clk 0:02:56]}  d5 {[%clk 0:02:55]} 3. e3 {[%clk 0:02:57]}  c5 {[%clk 0:02:55]} 4. Nf3 {[%clk 0:02:56]}  Nc6 {[%clk 0:02:55]} 5. Nbd2 {[%clk 0:02:54]}  Bg4 {[%clk 0:02:53]} 6. c3 {[%clk 0:02:52]}  e6 {[%clk 0:02:53]} 7. h3 {[%clk 0:02:52]}  Bxf3 {[%clk 0:02:52]} 8. Nxf3 {[%clk 0:02:52]}  Bd6 {[%clk 0:02:53]} 9. Ne5 {[%clk 0:02:21]}  O-O {[%clk 0:02:50]} 10. Bd3 {[%clk 0:02:16]}  Bxe5 {[%clk 0:02:40]} 11. Bxe5 {[%clk 0:02:15]}  Nxe5 {[%clk 0:02:39]} 12. dxe5 {[%clk 0:02:15]}  Nd7 {[%clk 0:02:40]} 13. f4 {[%clk 0:02:15]}  Qh4+ {[%clk 0:02:39]} 14. Ke2 {[%clk 0:02:02]}  f6 {[%clk 0:02:35]} 15. exf6 {[%clk 0:01:57]}  Nxf6 {[%clk 0:02:34]} 16. Qe1 {[%clk 0:01:55]}  Qxe1+ {[%clk 0:02:23]} 17. Raxe1 {[%clk 0:01:55]}  Rae8 {[%clk 0:02:21]} 18. g4 {[%clk 0:01:49]}  e5 {[%clk 0:02:17]} 19. Kd2 {[%clk 0:01:48]}  Re7 {[%clk 0:02:08]} 20. Rhf1 {[%clk 0:01:47]}  Rfe8 {[%clk 0:02:05]} 21. g5 {[%clk 0:01:41]}  Nh5 {[%clk 0:02:01]} 22. Bb5 {[%clk 0:01:15]}  Rf8 {[%clk 0:01:58]} 23. fxe5 {[%clk 0:01:11]}  Rxf1 {[%clk 0:01:57]} 24. Rxf1 {[%clk 0:01:07]}  Ng3 {[%clk 0:01:57]} 25. Rg1 {[%clk 0:00:56]}  Ne4+ {[%clk 0:01:56]} 26. Kc2 {[%clk 0:00:33]}  Rxe5 {[%clk 0:01:55]} 27. h4 {[%clk 0:00:34]}  Nd6 {[%clk 0:01:52]} 28. Bd7 {[%clk 0:00:28]}  Nc4 {[%clk 0:01:49]} 29. b3 {[%clk 0:00:18]}  Nxe3+ {[%clk 0:01:49]} 30. Kb2 {[%clk 0:00:19]}  Kf7 {[%clk 0:01:46]} 31. h5 {[%clk 0:00:14]}  Ke7 {[%clk 0:01:46]} 32. Bh3 {[%clk 0:00:14]}  d4 {[%clk 0:01:46]} 33. cxd4 {[%clk 0:00:14]}  cxd4 {[%clk 0:01:46]} 34. h6 {[%clk 0:00:15]}  gxh6 {[%clk 0:01:43]} 35. gxh6 {[%clk 0:00:16]}  Rh5 {[%clk 0:01:44]} 36. Rg7+ {[%clk 0:00:15]}  Kf6 {[%clk 0:01:44]} 37. Bc8 {[%clk 0:00:14]}  Rxh6 {[%clk 0:01:41]} 38. Rxb7 {[%clk 0:00:11]}  Rh2+ {[%clk 0:01:42]} 39. Kc1 {[%clk 0:00:09]}  Rc2+ {[%clk 0:01:38]} 40. Kb1 {[%clk 0:00:08]}  Rxc8 {[%clk 0:01:38]} 41. Rd7 {[%clk 0:00:06]}  Ke5 {[%clk 0:01:38]} 42. Re7+ {[%clk 0:00:06]}  Kf4 {[%clk 0:01:38]} 43. Rd7 {[%clk 0:00:06]}  Ke4 {[%clk 0:01:39]} 44. Rxh7 {[%clk 0:00:07]}  d3 {[%clk 0:01:38]} 45. Rc7 {[%clk 0:00:08]}  Rxc7 {[%clk 0:01:38]} 0-1


[Site "https://www.chess.com"]